Cogmind - Beta 14 @@@ ROGUE MODE // 2024.11.19 @ 21:48:00 Player: Elisius Result: Destroyed by G-47 Trooper with Particle Gun Performance ------------- Evolutions (0) 0 Regions Visited (1) 200 Robots Destroyed (8) 40 Value Destroyed (227) 227 Prototype IDs (2) 40 Alien Tech Used (0) 0 Bonus (0) 0 TOTAL SCORE: 507 Bonus ------- None Cogmind --------- Core Integrity 0/250 Matter 300/300 Energy 100/100 System Corruption 0% Temperature Cool (9) Movement Walking (190) Ox1 Location -10/Materials Parts ------- > --- POWER (1) -------- (None) > --- PROPULSION (2) --- Aluminum Leg > --- UTILITY (2) ------ Large Storage Unit Targeting Computer > --- WEAPON (2) ------- (None) > --- INVENTORY (15) --- Ion Engine Heat Sink Medium Storage Unit Large Storage Unit High-capacity Battery (250) Medium Matter Pod (50) Sensor Array Signal Interpreter Peak State ------------ > --- POWER ------------ Light Ion Engine > --- PROPULSION ------- Aluminum Leg Aluminum Leg > --- UTILITY ---------- Medium Storage Unit High-capacity Battery > --- WEAPON ----------- Small Laser Light Assault Rifle > --- INVENTORY -------- Ion Engine Heat Sink Small Storage Unit Small Storage Unit Medium Storage Unit Large Storage Unit Large Storage Unit Medium Matter Pod Small Laser Small Laser [Rating: 8] Favorites ----------- Power Light Ion Engine Engine Light Ion Engine Propulsion Aluminum Leg Leg Aluminum Leg Wheel Wheel Utility High-capacity Battery Storage High-capacity Battery Processor Targeting Computer Weapon Small Laser Energy Gun Small Laser Ballistic Gun Light Assault Rifle Build | -11 -10 ------- Run | Yrd Mat Slots Evolved . | . . Power . | . . Propulsion . | . . Utility . | . . Weapon . | . . Parts Attached 25 | 7 18 Power 2 | 2 . Engine 2 | 2 . Core . | . . Reactor . | . . Propulsion 4 | 2 2 Treads . | . . Leg 2 | . 2 Wheel 2 | 2 . Hover . | . . Flight . | . . Utility 15 | . 15 Device . | . . Storage 14 | . 14 Processor 1 | . 1 Hackware . | . . Protection . | . . Artifact . | . . Weapon 4 | 3 1 Energy Gun 3 | 2 1 Energy Cannon . | . . Ballistic Gun 1 | 1 . Ballistic Cannon . | . . Launcher . | . . Special Weapon . | . . Impact Weapon . | . . Slashing Weapon . | . . Piercing Weapon . | . . Special Melee Weapon . | . . Unidentified Prototypes . | . . Parts Lost 6 | . 6 Power 1 | . 1 Propulsion 2 | . 2 Utility . | . . Weapon 3 | . 3 Highest Loss Streak 4 | . 4 To Critical Strikes . | . . Average Slot Usage (%) 95 | . 95 Engine 13 | . 13 Leg 15 | . 15 Wheel 11 | . 11 Storage 26 | . 26 Energy Gun 16 | . 16 Ballistic Gun 10 | . 10 Peak Build Rating 8 | 5 8 Average Rating 6 | 3 6 On Entrance 2 | . 5 Naked Turns . | . . Heaviest Build 45 | 5 45 Greatest Support 20 | 20 20 Greatest Overweight (x) 2 | . 2 Average Overweight (x) . | . . Largest Inventory Capacity 15 | 5 15 Average Capacity 10 | 5 11 Most Carried 10 | 3 10 Average Carried 7 | 1 8 Final Capacity 15 | 5 15 Final Carried 8 | 3 8 Class Distribution -------------------- 100% | Mutant Dominant Class ---------------- Mutant | -10/Materials Resources | -11 -10 ----------- Run | Yrd Mat Matter Collected 483 | 274 209 Remotely . | . . Salvage Created 256 | 47 209 Parts 20 | 8 12 Haulers Intercepted . | . . Recyclers Shooed . | . . Parts Field Recycled . | . . Retrieved Matter . | . . Parts Self-Destructed . | . . Prevented . | . . Kills | -11 -10 ------- Run | Yrd Mat Combat Hostiles Destroyed 6 | 1 5 Guns 6 | 1 5 Classes Destroyed 3 | 2 1 Tunneler 1 | 1 . Watcher 1 | . 1 Grunt 6 | 1 5 Best Kill Streak 3 | 2 3 Combat Bots Only 3 | 1 3 Max Kills in Single Turn 2 | 2 1 Gunslinging . | . . Exploded . | . . Melee . | . . Uniques/NPCs Destroyed . | . . Combat | -11 -10 -------- Run | Yrd Mat Hostile Shots Fired 112 | 5 107 Missed 35 | 1 34 Damage Taken 842 | 44 798 Core 257 | 10 247 Absorbed by Shields . | . . Core Remaining (%) 96 | 96 . Volleys Fired 46 | 4 42 Largest 2 | 2 2 Hottest 80 | 60 80 Shots Fired 79 | 8 71 Gun 79 | 8 71 Cannon . | . . Launcher . | . . Special . | . . Kinetic 20 | 4 16 Thermal 59 | 4 55 Explosive . | . . Electromagnetic . | . . Robot Hit Streak 7 | 2 7 Robot Miss Streak 4 | 2 4 Penetration Max . | . . Secondary Targets 2 | . 2 Max Gunslinging Chain 1 | . 1 Shots Hit Robots 52 | 4 48 Core Hits 19 | 3 16 Critical Kills . | . . Critical Parts Destroyed . | . . Critical Strikes . | . . Melee Attacks . | . . Impact . | . . Slashing . | . . Piercing . | . . Sneak Attacks . | . . Combat Hostiles . | . . Follow-up Attacks . | . . Damage Inflicted 550 | 52 498 Guns 547 | 52 495 Cannons . | . . Explosions . | . . Melee . | . . Ramming 3 | . 3 Kinetic 131 | 28 103 Thermal 416 | 24 392 Explosive . | . . Electromagnetic . | . . Impact . | . . Slashing . | . . Piercing . | . . Highest Corruption . | . . Average Corruption . | . . Corruption Purged . | . . Corruption Blocked . | . . Overload Shots . | . . Overflow Damage . | . . Projectiles . | . . Explosions . | . . Melee . | . . Knockbacks . | . . Impact . | . . Kinetic . | . . Secondary . | . . Self-Inflicted Damage . | . . Shots . | . . Rammed . | . . Targets Rammed 2 | . 2 Kicked 2 | . 2 Crushed . | . . Highest Temperature 162 | 58 162 Average Temperature 54 | 31 56 Received Heat Transfer 390 | 24 366 Siege Activations . | . . Robots Corrupted . | . . Combat Hostiles . | . . Parts Fried . | . . Impact Corruptions . | . . Robots Melted . | . . Combat Hostiles . | . . Parts Melted 2 | . 2 Heat Transferred 950 | 50 900 Parts Sabotaged . | . . Parts Stolen . | . . Parts Stripped . | . . Power Chain Reactions . | . . Alert | -11 -10 ------- Run | Yrd Mat Peak Influence 103 | 25 103 Initial 16 | . 16 Average 37 | 3 43 Maximum Alert Level . | . . Low Security (%) 100 | 100 100 Level 1 . | . . Level 2 . | . . Level 3 . | . . Level 4 . | . . Level 5 . | . . High Security . | . . Max Security . | . . Squads Dispatched 2 | . 2 Investigation 2 | . 2 Extermination . | . . Reinforcement . | . . Assault . | . . Garrison . | . . Intercept . | . . Searches Triggered . | . . Construction Impeded . | . . Haulers Reinforced . | . . Active Scanning Responses . | . . Cargo Convoy Interrupts . | . . Stealth | -11 -10 --------- Run | Yrd Mat Distress Signals . | . . Communications Jammed . | . . Distress Signals . | . . Times Spotted 14 | 1 13 Peak Tracking Total 5 | 1 5 Tactical Retreats 1 | . 1 Traps | -11 -10 ------- Run | Yrd Mat Traps Triggered 2 | . 2 Indirectly . | . . Trap Hack Attempts . | . . Triggered . | . . Disarmed . | . . Reprogrammed . | . . Reused . | . . Traps Extracted . | . . Installed . | . . Triggered . | . . Machines | -11 -10 ---------- Run | Yrd Mat Machines Disabled . | . . Max in Single Turn . | . . Machines Repaired . | . . Machines Dismantled . | . . Machines Sabotaged . | . . Overloaded Fab Kills . | . . Hacking | -11 -10 --------- Run | Yrd Mat Machines Accessed 5 | . 5 Terminals 3 | . 3 Fabricators . | . . Repair Stations . | . . Recycling Units 2 | . 2 Scanalyzers . | . . Garrison Access . | . . Total Hacks 12 | . 12 Successful 9 | . 9 Failed 3 | . 3 Catastrophic . | . . Database Lockouts . | . . Manual 4 | . 4 Terminals 10 | . 10 Fabricators . | . . Repair Stations . | . . Recycling Units 2 | . 2 Scanalyzers . | . . Garrison Access . | . . Terminal Hacks 8 | . 8 Record 5 | . 5 Prototype ID Bank 1 | . 1 Emergency Access Points 1 | . 1 Zone Layout 1 | . 1 Fabricator Hacks . | . . Repair Station Hacks . | . . Recycling Unit Hacks 1 | . 1 Recycle Component 1 | . 1 Scanalyzer . | . . Garrison Access Hacks . | . . Unauthorized Hacks . | . . Terminals . | . . Fabricators . | . . Repair Stations . | . . Recycling Units . | . . Scanalyzers . | . . Garrison Access . | . . Data Cores Recovered . | . . Used . | . . Hacking Detections 2 | . 2 Full Trace Events . | . . Feedback Events . | . . Feedback Blocked . | . . Robot Schematics Acquired . | . . Robots Built . | . . Authchips . | . . Time . | . . Total Robot Build Rating . | . . Part Schematics Acquired . | . . Parts Built . | . . Authchips . | . . Time . | . . Total Part Build Rating . | . . Parts Repaired . | . . Time . | . . Parts Recycled 1 | . 1 Recycled Matter . | . . Retrieved Matter . | . . Retrieved Components . | . . Parts Scanalyzed . | . . Part Schematics Acquired . | . . Parts Damaged . | . . Bothacking | -11 -10 ------------ Run | Yrd Mat Used RIF Installer . | . . Robots Hacked . | . . Non-combat . | . . Combat . | . . Robot Hacks Applied . | . . Relay Couplers Released . | . . Fabnet Peak Effective % . | . . Robots Rewired . | . . Allies Hacked . | . . Hacks Repelled . | . . Allies | -11 -10 -------- Run | Yrd Mat Total Allies . | . . Largest Group . | . . Highest-Rated Group . | . . Highest-Rated Ally . | . . Total Orders . | . . Ally Attacks . | . . Total Damage . | . . Kills . | . . Allies Corrupted . | . . Allies Melted . | . . Intel | -11 -10 ------- Run | Yrd Mat Robot Analysis Total . | . . Derelict Logs Recovered . | . . Drone Launches . | . . Drone Recoveries . | . . Exploration | -11 -10 ------------- Run | Yrd Mat Turns Passed 820 | 131 689 Spaces Moved 623 | 128 495 Core 28 | 28 . Treads . | . . Legs 215 | . 215 Wheels 380 | 100 280 Hover . | . . Flight . | . . Fastest Speed 50 | 50 80 Average Speed 101 | 73 108 Slowest Speed 190 | 80 190 Overloaded Moves . | . . Propulsion Burnouts . | . . Robots Hopped . | . . Cave-ins Triggered . | . . Exploration Rate (%) 24 | 7 41 Regions Visited 1 Branch Regions . Pre-discovered Areas . | . . Known Exits Taken . | . . Unknown Exits Taken 1 | 1 . Scrap Searched . | . . Spaces Dug . | . . Terrain Destroyed . | . . Melee . | . . Projectile . | . . AOE . | . . Terrain Rammed . | . . Walls Destroyed . | . . Machines Disabled . | . . Actions | -11 -10 --------- Run | Yrd Mat Total 729 | 156 573 Wait 13 | 13 . Move 622 | 127 495 Hop . | . . Pick Up 15 | 3 12 Fast Attach 7 | 5 2 Attach 4 | 2 2 Detach 2 | 2 . Swap 14 | . 14 Drop 4 | . 4 Fire 46 | 4 42 Melee . | . . Ram . | . . Kick 2 | . 2 Crush . | . . Escape Stasis . | . . Rewire . | . . Trap . | . . Miscellaneous . | . . Route ------- -11/Scrapyard -10/Materials (discovered 3 exits: [*Mat x2] / [*Min]) History --------- Turn | Location | Event 2 | -11/Scrapyard | Met Revision 17 99 | -11/Scrapyard | Discovered new exit (range 8) 132 | -11/Scrapyard | Entered Materials 203 | -10/Materials | Discovered new exit (range 16) 207 | -10/Materials | Discovered new exit (range 16) 307 | -10/Materials | Build established: Mutant 729 | -10/Materials | Discovered new exit (range 10) 800 | -10/Materials | Core integrity fell below 50% 819 | -10/Materials | Core integrity fell below 20% 821 | -10/Materials | Destroyed by G-47 Trooper with Particle Gun Last Messages --------------- part, which are destroyed if removed (these are marked with a colon in the parts list, as a reminder). K-01 Serf cleans the Terminal. When the line of fire is red, you are attempting to shoot through an object at another target, which incurs significant penalties. Lgt. Ion Engine destroyed. K-01 Serf cleans the Terminal. Sml. Laser destroyed. Aluminum Leg destroyed. Sml. Laser destroyed. G-47 Trooper heat damages Particle Gun, Imp. Heat Sink, Aluminum Leg, Lgt. Nuclear Core. Kicked G-47 Trooper. Ramming works as a last resort when unarmed or blocked, but can have serious negative consequences. Kicked G-47 Trooper. [Achievement: First Step to Greatness] Map ----- +----------------------------------------------------+ | ?????????????????????????????????????????????????? | | ?????????????????????????????????????????????????? | | ?????????????????????????????????????????????????? | | ?????????????????????????????????????????????????? | | ?????????????????????????????????????????????????? | | ?????????????????????????????????????????????????? | | ?????????????????????????????????????????????????? | | ?????????????????????????????????????????????????? | | ?????????????????????????????????????????????????? | | ?????????????????????????????????????????????????? | | ?????????????????????????????????????????????????? | | ?????????????????????????????????????????????????? | | ???????????????????????????????? ????????????????? | | ????????????????????? ??? ? #??????????????? | | ????????????????????# ?? #??????????????? | | ????????????????????# "?? T??????????????? | | ????????????????????# "?" ##?????????????? | | ????????????# ??????# """ ![["#?????????????? | | ???????????##+####### """ ![!T#?????????????? | | ???????+ ?? ^ t![ "#?????????????? | | ???????# #??????????????? | | ???????# """^ """ """ #??????????????? | | ????????# """ """ """ #??????????????? | | ????????# """ """ """ k#??????????????? | | ????????# ^ """s #??????????????? | | ????????# @g #??????????????? | | ????????# """ g #??????????????? | | ??####### """ #??????????????? | | ??# """ #??????????????? | | ??# < "Y" #??????????????? | | ??# """ * #???###### | | ??###########+############ #???#????# | | ?????????# #????????# k !?#????####### | | ?????????# #????????# !!#????????# | | ?????????# """ #????????# [[#????????# | | ?????????# """ #????????+ [[#????????# | | ?????????#! """ #????????# !!#??####### | | ?????????# #?????????##t !!#??# ##+ | | ?????????#####+##??????????#u #####??# | | ?????????????# #???????????# #??????# | | ?????????#####+####????????? #??????# | | ?????????# #????????? #??????# *=### | | ????###### """ #?????????? #??????## ##?? | | ????# # """ #???????????# #???????# #??? | | ????+ # ! """ #???????????# #???????# #??? | | ????# + """ #???????????# #???????# #??? | | ????# # """ #???????????# ######### ##?? | | ????## ## #???????????# #?? | | ?????# ## = #???????????# #?? | | ?????# ## ! #???????????# #?? | +----------------------------------------------------+ Best States ------------- Heat Dissipation 25 Energy Generation 10 Energy Capacity 375 Matter Stores 300 Matter Capacity 400 Sight Range 16 Terrain Scan Density 10 Evasion (%) 55 Targeting Accuracy 5 Item Schematics ----------------- None Robot Schematics ------------------ None Fabricated ------------ Nothing Alien Tech Used ----------------- None Achievements -------------- First Step to Greatness Challenges ------------ None Game ------ Seed BlastPlasmaTriangulator Manual? 0 Play Time 00:30:32 Cumulative 0.4 hours Start 2024.11.19 @ 21:14:21 End 2024.11.19 @ 21:48:00 Sessions 1 Manual Loads 0 Difficulty Rogue Special Mode None Game No. 1 Rogue 1 Adventurer 0 Explorer 0 Win Type - Total 0 Types 0/0/0/0/0/0/0/0/0 Lore% 0 Gallery% 1 Achievement% 0 Wizard Run 0 Options --------- Layout 1 ASCII 0 Keyboard 1 Movement Vi Keybinds 0 Fullscreen 1 Font 32/SmallcapsGlow Map View 50x35 Zoom Use 1% Tactical HUD 0 Map Filters NONE Filters NONE Steam 1 RUN: bdaf1adc-b18b-45c8-a8ba-15195e339952